[Event "*** SCC Grand Prix: Titled Tuesday Blitz"]
[Site "Chess.com"]
[Date "2020.07.14"]
[Round "2"]
[White "GMKrikor"]
[Black "Zufi1811"]
[Result "1-0"]
[WhiteElo "2693"]
[BlackElo "2463"]
[TimeControl "180+1"]
[EndTime "10:17:34 PDT"]
[Termination "GMKrikor won by resignation"]

1. e4 {[%clk 0:03:00.9]} 1... c5 {[%clk 0:02:59.3]} 2. Nf3 {[%clk 0:02:59.8]}
2... d6 {[%clk 0:02:59.8]} 3. d4 {[%clk 0:02:59.4]} 3... cxd4 {[%clk 0:03:00.7]}
4. Nxd4 {[%clk 0:02:59.6]} 4... Nf6 {[%clk 0:03:01.3]} 5. Nc3 {[%clk 0:03:00.1]}
5... a6 {[%clk 0:03:01.8]} 6. Be3 {[%clk 0:03:00.4]} 6... e5 {[%clk 0:03:01.1]}
7. Nb3 {[%clk 0:03:00]} 7... Be7 {[%clk 0:02:58.5]} 8. f3 {[%clk 0:02:59.1]}
8... O-O {[%clk 0:02:51]} 9. Qd2 {[%clk 0:02:57.4]} 9... Be6 {[%clk 0:02:51.3]}
10. O-O-O {[%clk 0:02:55.7]} 10... a5 {[%clk 0:02:51.9]} 11. a4 {[%clk
0:02:54.9]} 11... Nc6 {[%clk 0:02:48.5]} 12. g4 {[%clk 0:02:55.2]} 12... Nb4
{[%clk 0:02:48.1]} 13. g5 {[%clk 0:02:55.6]} 13... Ne8 {[%clk 0:02:48.2]} 14.
Kb1 {[%clk 0:02:55.5]} 14... Rc8 {[%clk 0:02:41.5]} 15. f4 {[%clk 0:02:19.3]}
15... exf4 {[%clk 0:02:36.6]} 16. Bxf4 {[%clk 0:02:20.2]} 16... Nc7 {[%clk
0:02:07.9]} 17. Bxd6 {[%clk 0:01:56.2]} 17... Bxg5 {[%clk 0:01:55.4]} 18. Qf2
{[%clk 0:01:43.4]} 18... Qe8 {[%clk 0:01:27.1]} 19. Bxf8 {[%clk 0:01:39.2]}
19... Qxf8 {[%clk 0:01:27.9]} 20. Rg1 {[%clk 0:01:33.4]} 20... Be7 {[%clk
0:01:16]} 21. Nxa5 {[%clk 0:01:07.9]} 21... Bc5 {[%clk 0:01:11.5]} 22. Qg3
{[%clk 0:01:06.6]} 22... Bxg1 {[%clk 0:01:10.5]} 23. Qxg1 {[%clk 0:01:07.5]}
23... h5 {[%clk 0:00:32.3]} 24. Qb6 {[%clk 0:01:03.7]} 24... Na8 {[%clk
0:00:17]} 25. Qd6 {[%clk 0:01:03.2]} 25... Qxd6 {[%clk 0:00:15]} 26. Rxd6 {[%clk
0:01:04.1]} 26... b6 {[%clk 0:00:15.6]} 27. Nb3 {[%clk 0:00:58]} 27... Kf8
{[%clk 0:00:15.8]} 28. Rd2 {[%clk 0:00:40]} 28... Ke7 {[%clk 0:00:15.6]} 29. Nd4
{[%clk 0:00:39.9]} 29... Nc7 {[%clk 0:00:12.3]} 30. Ncb5 {[%clk 0:00:30.9]}
30... Nxb5 {[%clk 0:00:11.6]} 31. axb5 {[%clk 0:00:31.8]} 31... Rc5 {[%clk
0:00:11.4]} 32. c3 {[%clk 0:00:29.7]} 32... Na2 {[%clk 0:00:10.4]} 33. Nxe6
{[%clk 0:00:29.2]} 33... Nxc3+ {[%clk 0:00:09.5]} 34. bxc3 {[%clk 0:00:28.8]}
34... Kxe6 {[%clk 0:00:09.5]} 35. Kb2 {[%clk 0:00:26.4]} 1-0

[Event "*** SCC Grand Prix: Titled Tuesday Blitz"]
[Site "Chess.com"]
[Date "2020.07.14"]
[Round "2"]
[White "vpsetter"]
[Black "Olga_Zhuravleva"]
[Result "1-0"]
[WhiteElo "2609"]
[BlackElo "2306"]
[TimeControl "180+1"]
[EndTime "10:17:34 PDT"]
[Termination "vpsetter won by resignation"]

1. e4 {[%clk 0:03:00.5]} 1... e5 {[%clk 0:02:59.2]} 2. Nf3 {[%clk 0:03:00.7]}
2... Nc6 {[%clk 0:02:59.5]} 3. Bb5 {[%clk 0:03:00.4]} 3... f5 {[%clk 0:02:59.4]}
4. d3 {[%clk 0:02:55.1]} 4... Nf6 {[%clk 0:02:59.2]} 5. Nc3 {[%clk 0:02:44.8]}
5... Bc5 {[%clk 0:02:58.9]} 6. O-O {[%clk 0:02:36.6]} 6... O-O {[%clk
0:02:57.2]} 7. Bg5 {[%clk 0:02:20.9]} 7... d6 {[%clk 0:02:56.5]} 8. Bc4+ {[%clk
0:02:05.1]} 8... Kh8 {[%clk 0:02:54.5]} 9. Nd5 {[%clk 0:01:59.3]} 9... f4 {[%clk
0:02:43.3]} 10. c3 {[%clk 0:01:54.8]} 10... Bg4 {[%clk 0:02:36.4]} 11. b4 {[%clk
0:01:44.7]} 11... Bb6 {[%clk 0:02:34.6]} 12. a4 {[%clk 0:01:42.2]} 12... a6
{[%clk 0:02:31.3]} 13. h3 {[%clk 0:01:26.9]} 13... Bh5 {[%clk 0:02:29.6]} 14.
Kh2 {[%clk 0:01:06.5]} 14... Ba7 {[%clk 0:02:21.4]} 15. g4 {[%clk 0:00:48.9]}
15... fxg3+ {[%clk 0:01:52.4]} 16. fxg3 {[%clk 0:00:45.4]} 16... Qd7 {[%clk
0:01:46.6]} 17. Bxf6 {[%clk 0:00:42.5]} 17... gxf6 {[%clk 0:01:46.2]} 18. Qd2
{[%clk 0:00:28.5]} 18... Qg7 {[%clk 0:01:44.9]} 19. Nh4 {[%clk 0:00:26]} 19...
Bg6 {[%clk 0:01:22.1]} 20. g4 {[%clk 0:00:21.6]} 20... Ne7 {[%clk 0:01:19.6]}
21. Nxc7 {[%clk 0:00:15.4]} 21... Rac8 {[%clk 0:01:11.3]} 22. Ne6 {[%clk
0:00:15.2]} 22... Qg8 {[%clk 0:01:07.6]} 23. Nxf8 {[%clk 0:00:13.8]} 23... Qxf8
{[%clk 0:01:08.2]} 24. Be6 {[%clk 0:00:13.3]} 24... Rd8 {[%clk 0:00:58.4]} 25.
g5 {[%clk 0:00:12.6]} 25... d5 {[%clk 0:00:40.9]} 26. gxf6 {[%clk 0:00:12.4]}
26... dxe4 {[%clk 0:00:33]} 27. fxe7 {[%clk 0:00:10.4]} 27... Qxe7 {[%clk
0:00:33.3]} 28. Nxg6+ {[%clk 0:00:10.5]} 28... hxg6 {[%clk 0:00:32.7]} 29. Qh6+
{[%clk 0:00:10.1]} 29... Qh7 {[%clk 0:00:32.9]} 30. Rf8+ {[%clk 0:00:10.1]}
30... Rxf8 {[%clk 0:00:33.1]} 31. Qxf8+ {[%clk 0:00:11]} 1-0

[Event "*** SCC Grand Prix: Titled Tuesday Blitz"]
[Site "Chess.com"]
[Date "2020.07.14"]
[Round "2"]
[White "Euge_chess"]
[Black "northridgehawk"]
[Result "0-1"]
[WhiteElo "2003"]
[BlackElo "2359"]
[TimeControl "180+1"]
[EndTime "10:17:34 PDT"]
[Termination "northridgehawk won on time"]

1. e4 {[%clk 0:03:00.9]} 1... e5 {[%clk 0:02:56.3]} 2. Nf3 {[%clk 0:03:00.9]}
2... Nc6 {[%clk 0:02:56.1]} 3. Nc3 {[%clk 0:03:00.9]} 3... Nf6 {[%clk
0:02:54.6]} 4. Bb5 {[%clk 0:03:00.9]} 4... Nd4 {[%clk 0:02:53.4]} 5. Bc4 {[%clk
0:02:59.2]} 5... Bc5 {[%clk 0:02:50.2]} 6. Nxe5 {[%clk 0:02:56]} 6... O-O {[%clk
0:02:49.4]} 7. d3 {[%clk 0:02:52.7]} 7... d6 {[%clk 0:02:48.9]} 8. Nf3 {[%clk
0:02:51.4]} 8... Bg4 {[%clk 0:02:45.9]} 9. Be3 {[%clk 0:02:50.4]} 9... Re8
{[%clk 0:02:43]} 10. Bxd4 {[%clk 0:02:40.2]} 10... Bxd4 {[%clk 0:02:41.3]} 11.
h3 {[%clk 0:02:39.8]} 11... Bh5 {[%clk 0:02:40.5]} 12. Bb3 {[%clk 0:02:13.2]}
12... d5 {[%clk 0:02:36.8]} 13. O-O {[%clk 0:02:04.9]} 13... Bxc3 {[%clk
0:02:33]} 14. bxc3 {[%clk 0:02:04]} 14... dxe4 {[%clk 0:02:33.2]} 15. dxe4
{[%clk 0:02:03.8]} 15... Nxe4 {[%clk 0:02:33.1]} 16. Qxd8 {[%clk 0:01:48.5]}
16... Raxd8 {[%clk 0:02:34]} 17. g4 {[%clk 0:01:47]} 17... Bg6 {[%clk
0:02:30.6]} 18. c4 {[%clk 0:01:39.8]} 18... c6 {[%clk 0:02:25]} 19. Rad1 {[%clk
0:01:36.9]} 19... Nc3 {[%clk 0:02:22.7]} 20. Rxd8 {[%clk 0:01:29.9]} 20... Rxd8
{[%clk 0:02:21.9]} 21. Re1 {[%clk 0:01:29.8]} 21... a5 {[%clk 0:02:19.7]} 22. a4
{[%clk 0:01:26.1]} 22... c5 {[%clk 0:02:18.4]} 23. Re3 {[%clk 0:01:22.1]} 23...
Ne4 {[%clk 0:02:15.2]} 24. Rd3 {[%clk 0:01:16.3]} 24... Rd6 {[%clk 0:02:11.8]}
25. Ne5 {[%clk 0:01:01.5]} 25... b6 {[%clk 0:02:09.4]} 26. Rxd6 {[%clk
0:00:58.9]} 26... Nxd6 {[%clk 0:02:08.4]} 27. Nd7 {[%clk 0:00:58.5]} 27... Nc8
{[%clk 0:02:08.1]} 28. c3 {[%clk 0:00:53.4]} 28... Be4 {[%clk 0:01:54]} 29. f4
{[%clk 0:00:48.7]} 29... f6 {[%clk 0:01:51.6]} 30. Kf2 {[%clk 0:00:43.5]} 30...
Bc6 {[%clk 0:01:49.4]} 31. Nb8 {[%clk 0:00:42.9]} 31... Be8 {[%clk 0:01:46.1]}
32. Na6 {[%clk 0:00:31.4]} 32... Kf7 {[%clk 0:01:42.8]} 33. Nc7 {[%clk 0:00:29]}
33... Bc6 {[%clk 0:01:42]} 34. Nd5 {[%clk 0:00:28]} 34... Ke6 {[%clk 0:01:38.3]}
35. Ke3 {[%clk 0:00:24.6]} 35... g6 {[%clk 0:01:37.4]} 36. Nc7+ {[%clk
0:00:19.8]} 36... Kd6 {[%clk 0:01:30.8]} 37. Nd5 {[%clk 0:00:19.6]} 37... Ke6
{[%clk 0:01:29.6]} 38. Nc7+ {[%clk 0:00:18.9]} 38... Kf7 {[%clk 0:01:29.9]} 39.
Nd5 {[%clk 0:00:18.6]} 39... h5 {[%clk 0:01:28.1]} 40. f5 {[%clk 0:00:17.4]}
40... gxf5 {[%clk 0:01:25.5]} 41. gxf5 {[%clk 0:00:16.9]} 41... Bd7 {[%clk
0:01:25.6]} 42. Kf4 {[%clk 0:00:16.4]} 42... Bc6 {[%clk 0:01:22.1]} 43. h4
{[%clk 0:00:16.1]} 43... Bxd5 {[%clk 0:01:19]} 44. cxd5 {[%clk 0:00:15.4]} 44...
Nd6 {[%clk 0:01:19.9]} 45. Ba2 {[%clk 0:00:11]} 45... c4 {[%clk 0:01:19.1]} 46.
Bb1 {[%clk 0:00:05.1]} 46... Ke7 {[%clk 0:01:20]} 47. Bc2 {[%clk 0:00:04.6]}
47... Nb7 {[%clk 0:01:18.5]} 48. Bd1 {[%clk 0:00:04.6]} 48... Kd6 {[%clk
0:01:18.4]} 49. Bxh5 {[%clk 0:00:04.5]} 49... Nc5 {[%clk 0:01:19.2]} 50. Bf7
{[%clk 0:00:04.1]} 50... Nd3+ {[%clk 0:01:18.6]} 51. Ke3 {[%clk 0:00:03.3]}
51... Ne5 {[%clk 0:01:19.5]} 52. h5 {[%clk 0:00:01.9]} 52... Nxf7 {[%clk
0:01:18.7]} 53. Kf4 {[%clk 0:00:01.2]} 53... Nh6 {[%clk 0:01:19.6]} 0-1

[Event "*** SCC Grand Prix: Titled Tuesday Blitz"]
[Site "Chess.com"]
[Date "2020.07.14"]
[Round "2"]
[White "Grischuk"]
[Black "ENEASZ"]
[Result "1-0"]
[WhiteElo "3054"]
[BlackElo "2578"]
[TimeControl "180+1"]
[EndTime "10:17:35 PDT"]
[Termination "Grischuk won on time"]

1. Nf3 {[%clk 0:02:28.2]} 1... Nf6 {[%clk 0:02:58.4]} 2. c4 {[%clk 0:02:23.5]}
2... e6 {[%clk 0:02:57.6]} 3. g3 {[%clk 0:02:21]} 3... d5 {[%clk 0:02:57.7]} 4.
Bg2 {[%clk 0:02:21]} 4... Be7 {[%clk 0:02:56.6]} 5. O-O {[%clk 0:02:19.9]} 5...
O-O {[%clk 0:02:56]} 6. d4 {[%clk 0:02:17.7]} 6... dxc4 {[%clk 0:02:56.3]} 7.
Qc2 {[%clk 0:02:17.5]} 7... b5 {[%clk 0:02:56.5]} 8. a4 {[%clk 0:02:16.4]} 8...
b4 {[%clk 0:02:55.3]} 9. Nfd2 {[%clk 0:02:16.1]} 9... c6 {[%clk 0:02:48.8]} 10.
Nxc4 {[%clk 0:02:15]} 10... Qxd4 {[%clk 0:02:47.5]} 11. Rd1 {[%clk 0:02:11.1]}
11... Qc5 {[%clk 0:02:47.3]} 12. Be3 {[%clk 0:02:11.5]} 12... Qh5 {[%clk
0:02:45.1]} 13. Nbd2 {[%clk 0:02:12.1]} 13... Ba6 {[%clk 0:02:25.4]} 14. Nf3
{[%clk 0:01:55.6]} 14... Rc8 {[%clk 0:02:19.7]} 15. Nfe5 {[%clk 0:01:48.6]}
15... Nd5 {[%clk 0:01:55.9]} 16. Qe4 {[%clk 0:01:34]} 16... Rc7 {[%clk
0:01:24.4]} 17. Bf3 {[%clk 0:01:30.8]} 17... Qf5 {[%clk 0:01:23.9]} 18. Qxf5
{[%clk 0:01:19]} 18... exf5 {[%clk 0:01:24.8]} 19. Rac1 {[%clk 0:01:19.4]} 19...
Bf6 {[%clk 0:01:08.8]} 20. Bc5 {[%clk 0:01:13.1]} 20... Nd7 {[%clk 0:00:39.9]}
21. Bd6 {[%clk 0:01:12.8]} 21... Nxe5 {[%clk 0:00:39.1]} 22. Nxe5 {[%clk
0:00:56.5]} 22... Bxe5 {[%clk 0:00:28.1]} 23. Bxe5 {[%clk 0:00:53.5]} 23... Rcc8
{[%clk 0:00:19]} 24. e3 {[%clk 0:00:49.2]} 24... h6 {[%clk 0:00:17.9]} 25. Rc5
{[%clk 0:00:47.9]} 25... Bb7 {[%clk 0:00:16.8]} 26. a5 {[%clk 0:00:45.8]} 26...
Re8 {[%clk 0:00:14.6]} 27. Bd4 {[%clk 0:00:45.8]} 27... a6 {[%clk 0:00:13.4]}
28. Rdc1 {[%clk 0:00:40.6]} 28... Rad8 {[%clk 0:00:12.2]} 29. h4 {[%clk
0:00:39.2]} 29... Rd7 {[%clk 0:00:11.4]} 30. R1c4 {[%clk 0:00:36.3]} 30... Kh7
{[%clk 0:00:09.9]} 31. h5 {[%clk 0:00:31.8]} 31... Re6 {[%clk 0:00:09.9]} 32.
Bxd5 {[%clk 0:00:30.8]} 32... Rxd5 {[%clk 0:00:05.6]} 33. Rxd5 {[%clk
0:00:30.1]} 33... cxd5 {[%clk 0:00:06.5]} 34. Rc7 {[%clk 0:00:30.7]} 1-0

[Event "*** SCC Grand Prix: Titled Tuesday Blitz"]
[Site "Chess.com"]
[Date "2020.07.14"]
[Round "2"]
[White "Arjun2002"]
[Black "ikhasu"]
[Result "1-0"]
[WhiteElo "2655"]
[BlackElo "2414"]
[TimeControl "180+1"]
[EndTime "10:17:35 PDT"]
[Termination "Arjun2002 won on time"]

1. d4 {[%clk 0:03:00.9]} 1... Nf6 {[%clk 0:02:59.2]} 2. c4 {[%clk 0:03:00.6]}
2... c5 {[%clk 0:02:59.2]} 3. d5 {[%clk 0:03:00.1]} 3... b5 {[%clk 0:02:59.3]}
4. cxb5 {[%clk 0:02:58.3]} 4... a6 {[%clk 0:02:59.4]} 5. b6 {[%clk 0:02:58.8]}
5... g6 {[%clk 0:02:59.1]} 6. Nc3 {[%clk 0:02:58.7]} 6... Bg7 {[%clk 0:02:58.4]}
7. e4 {[%clk 0:02:58.7]} 7... d6 {[%clk 0:02:58.6]} 8. Nf3 {[%clk 0:02:56.3]}
8... Nbd7 {[%clk 0:02:58.5]} 9. Be2 {[%clk 0:02:51.8]} 9... Rb8 {[%clk
0:02:58.5]} 10. O-O {[%clk 0:02:51.1]} 10... O-O {[%clk 0:02:55.6]} 11. Nd2
{[%clk 0:02:49.6]} 11... Nxb6 {[%clk 0:02:55.1]} 12. Nc4 {[%clk 0:02:49]} 12...
Nxc4 {[%clk 0:02:46.4]} 13. Bxc4 {[%clk 0:02:49.9]} 13... Nd7 {[%clk 0:02:46.3]}
14. Qe2 {[%clk 0:02:45.9]} 14... a5 {[%clk 0:02:15]} 15. f4 {[%clk 0:02:44.3]}
15... Nb6 {[%clk 0:02:12.7]} 16. Bd3 {[%clk 0:02:42.5]} 16... f5 {[%clk
0:02:02.8]} 17. e5 {[%clk 0:02:28.1]} 17... dxe5 {[%clk 0:01:55]} 18. fxe5
{[%clk 0:02:26.2]} 18... Kh8 {[%clk 0:01:49.9]} 19. d6 {[%clk 0:01:28.3]} 19...
exd6 {[%clk 0:01:48]} 20. exd6 {[%clk 0:01:28.5]} 20... Re8 {[%clk 0:01:36.9]}
21. Qf3 {[%clk 0:01:23.9]} 21... Qxd6 {[%clk 0:01:33.6]} 22. Bf4 {[%clk
0:01:23.3]} 22... Qd4+ {[%clk 0:01:33.4]} 23. Kh1 {[%clk 0:01:22.8]} 23... Bb7
{[%clk 0:01:33.4]} 24. Qg3 {[%clk 0:01:21.8]} 24... Rbd8 {[%clk 0:01:07.8]} 25.
Rad1 {[%clk 0:01:19.5]} 25... Be5 {[%clk 0:00:48.6]} 26. Bb5 {[%clk 0:00:59.2]}
26... Bxf4 {[%clk 0:00:44.8]} 27. Rxf4 {[%clk 0:00:58.8]} 27... Qe5 {[%clk
0:00:12.7]} 28. Bxe8 {[%clk 0:00:51.7]} 28... Rxe8 {[%clk 0:00:12.8]} 29. Rff1
{[%clk 0:00:42.2]} 29... Qxg3 {[%clk 0:00:10.1]} 30. hxg3 {[%clk 0:00:43.1]}
30... Nc4 {[%clk 0:00:10.1]} 31. Rfe1 {[%clk 0:00:41.2]} 31... Ne3 {[%clk
0:00:05.9]} 32. Rd3 {[%clk 0:00:32.7]} 32... Bxg2+ {[%clk 0:00:02]} 33. Kg1
{[%clk 0:00:32.5]} 1-0

[Event "*** SCC Grand Prix: Titled Tuesday Blitz"]
[Site "Chess.com"]
[Date "2020.07.14"]
[Round "2"]
[White "Cocaino74"]
[Black "RobertoJBM"]
[Result "0-1"]
[WhiteElo "2340"]
[BlackElo "2624"]
[TimeControl "180+1"]
[EndTime "10:17:37 PDT"]
[Termination "RobertoJBM won by resignation"]

1. e4 {[%clk 0:03:00.9]} 1... c6 {[%clk 0:02:59.8]} 2. d4 {[%clk 0:02:59.7]}
2... d5 {[%clk 0:03:00.7]} 3. exd5 {[%clk 0:03:00.6]} 3... cxd5 {[%clk
0:03:00.8]} 4. Bd3 {[%clk 0:03:01.3]} 4... Nc6 {[%clk 0:03:00.1]} 5. c3 {[%clk
0:03:01.7]} 5... g6 {[%clk 0:03:00.5]} 6. Nf3 {[%clk 0:02:59.8]} 6... Bf5 {[%clk
0:03:00]} 7. Bxf5 {[%clk 0:02:47.8]} 7... gxf5 {[%clk 0:03:00.9]} 8. Bg5 {[%clk
0:02:48.2]} 8... Qd7 {[%clk 0:03:00.3]} 9. Nbd2 {[%clk 0:02:43.3]} 9... Bg7
{[%clk 0:02:59.9]} 10. O-O {[%clk 0:02:42.6]} 10... Nf6 {[%clk 0:02:59.2]} 11.
Ne5 {[%clk 0:02:39.6]} 11... Nxe5 {[%clk 0:02:58.6]} 12. dxe5 {[%clk 0:02:40.5]}
12... Ne4 {[%clk 0:02:58.8]} 13. Nxe4 {[%clk 0:02:40.5]} 13... dxe4 {[%clk
0:02:59.4]} 14. Qxd7+ {[%clk 0:02:28.9]} 14... Kxd7 {[%clk 0:03:00.3]} 15. Rad1+
{[%clk 0:02:28.4]} 15... Ke6 {[%clk 0:03:00.3]} 16. f4 {[%clk 0:02:27]} 16...
exf3 {[%clk 0:02:57.1]} 17. Rxf3 {[%clk 0:02:26.1]} 17... Bxe5 {[%clk
0:02:56.5]} 18. Rdf1 {[%clk 0:02:09.2]} 18... f6 {[%clk 0:02:53.8]} 19. Bh6
{[%clk 0:02:02.9]} 19... Rad8 {[%clk 0:02:48.9]} 20. Rxf5 {[%clk 0:01:55.5]}
20... Rd3 {[%clk 0:02:44.8]} 21. R5f2 {[%clk 0:01:48.2]} 21... Rhd8 {[%clk
0:02:40.8]} 22. Re2 {[%clk 0:01:46.4]} 22... Kd5 {[%clk 0:02:24]} 23. g3 {[%clk
0:01:39.9]} 23... Rd7 {[%clk 0:02:22.4]} 24. Bf4 {[%clk 0:01:34]} 24... Bxf4
{[%clk 0:02:20.2]} 25. Rxf4 {[%clk 0:01:34.3]} 25... Kc6 {[%clk 0:02:10.1]} 26.
Re6+ {[%clk 0:01:28.2]} 26... R3d6 {[%clk 0:02:09]} 27. Rfe4 {[%clk 0:01:26.7]}
27... Rxe6 {[%clk 0:02:08.1]} 28. Rxe6+ {[%clk 0:01:27.6]} 28... Kd5 {[%clk
0:02:09]} 29. Re2 {[%clk 0:01:26.8]} 29... e5 {[%clk 0:02:09.5]} 30. b3 {[%clk
0:01:22.2]} 30... Ke6 {[%clk 0:02:07]} 31. g4 {[%clk 0:01:17.7]} 31... Rd3
{[%clk 0:02:06.1]} 32. c4 {[%clk 0:01:13]} 32... Rd4 {[%clk 0:02:05.4]} 33. h3
{[%clk 0:01:12.9]} 33... h5 {[%clk 0:02:04.8]} 34. Rg2 {[%clk 0:01:09.3]} 34...
hxg4 {[%clk 0:02:04.2]} 35. hxg4 {[%clk 0:01:10.2]} 35... Kf7 {[%clk 0:01:54.3]}
36. Kh2 {[%clk 0:01:07.3]} 36... Kg6 {[%clk 0:01:54.3]} 37. Kh3 {[%clk 0:01:02]}
37... Kg5 {[%clk 0:01:54.5]} 38. Rf2 {[%clk 0:01:02.6]} 38... Rd3+ {[%clk
0:01:54.3]} 39. Kg2 {[%clk 0:01:01.4]} 39... e4 {[%clk 0:01:52.8]} 40. Kf1
{[%clk 0:00:53.8]} 40... Rf3 {[%clk 0:01:24.9]} 41. Rxf3 {[%clk 0:00:27.5]}
41... exf3 {[%clk 0:01:25.8]} 42. c5 {[%clk 0:00:27.6]} 42... Kxg4 {[%clk
0:01:26.1]} 43. Kf2 {[%clk 0:00:26.9]} 43... Kf4 {[%clk 0:01:25.9]} 44. b4
{[%clk 0:00:23.6]} 44... Ke4 {[%clk 0:01:23.3]} 45. a3 {[%clk 0:00:13.5]} 45...
a6 {[%clk 0:01:19.1]} 46. a4 {[%clk 0:00:13.4]} 46... Kd5 {[%clk 0:01:18.2]} 47.
Kxf3 {[%clk 0:00:11.7]} 47... Kc4 {[%clk 0:01:17.6]} 48. Ke4 {[%clk 0:00:05.1]}
48... Kxb4 {[%clk 0:01:15.6]} 49. Kd5 {[%clk 0:00:05.5]} 49... f5 {[%clk
0:01:14.3]} 50. Kd6 {[%clk 0:00:03.9]} 50... f4 {[%clk 0:01:13.7]} 51. Kd5
{[%clk 0:00:04.3]} 51... f3 {[%clk 0:01:13.4]} 52. Ke4 {[%clk 0:00:04.8]} 52...
f2 {[%clk 0:01:12.5]} 0-1

[Event "*** SCC Grand Prix: Titled Tuesday Blitz"]
[Site "Chess.com"]
[Date "2020.07.14"]
[Round "2"]
[White "Sanyura"]
[Black "Kaua18"]
[Result "0-1"]
[WhiteElo "2461"]
[BlackElo "2285"]
[TimeControl "180+1"]
[EndTime "10:17:40 PDT"]
[Termination "Kaua18 won on time"]

1. e4 {[%clk 0:03:00.9]} 1... c5 {[%clk 0:02:57.7]} 2. Nf3 {[%clk 0:03:01.3]}
2... Nc6 {[%clk 0:02:51.6]} 3. d4 {[%clk 0:03:01.5]} 3... cxd4 {[%clk
0:02:52.5]} 4. Nxd4 {[%clk 0:03:02.1]} 4... Nf6 {[%clk 0:02:51.4]} 5. Nc3 {[%clk
0:03:02.7]} 5... e5 {[%clk 0:02:51.3]} 6. Ndb5 {[%clk 0:03:01.7]} 6... d6 {[%clk
0:02:51.5]} 7. Bg5 {[%clk 0:03:02.3]} 7... a6 {[%clk 0:02:51.4]} 8. Na3 {[%clk
0:03:02.8]} 8... b5 {[%clk 0:02:51.6]} 9. Nd5 {[%clk 0:03:03]} 9... Be7 {[%clk
0:02:50.9]} 10. Bxf6 {[%clk 0:03:03.7]} 10... Bxf6 {[%clk 0:02:51.8]} 11. c3
{[%clk 0:03:04.4]} 11... Bg5 {[%clk 0:02:51.5]} 12. Nc2 {[%clk 0:03:04.8]} 12...
O-O {[%clk 0:02:51.2]} 13. a4 {[%clk 0:03:05.4]} 13... bxa4 {[%clk 0:02:51.2]}
14. Rxa4 {[%clk 0:03:06.3]} 14... a5 {[%clk 0:02:51.8]} 15. Bc4 {[%clk 0:03:06]}
15... Rb8 {[%clk 0:02:51.8]} 16. b3 {[%clk 0:03:05.7]} 16... Kh8 {[%clk
0:02:48.6]} 17. O-O {[%clk 0:03:06.2]} 17... f5 {[%clk 0:02:48.1]} 18. exf5
{[%clk 0:03:06.7]} 18... Bxf5 {[%clk 0:02:48.5]} 19. Nce3 {[%clk 0:03:07.6]}
19... Bg6 {[%clk 0:02:42]} 20. Qg4 {[%clk 0:02:17.6]} 20... e4 {[%clk
0:02:19.5]} 21. Qe2 {[%clk 0:01:20.1]} 21... Ne5 {[%clk 0:02:15.4]} 22. Rd1
{[%clk 0:01:19.1]} 22... Bh4 {[%clk 0:01:50.6]} 23. g3 {[%clk 0:01:15.4]} 23...
Bg5 {[%clk 0:01:47.8]} 24. h4 {[%clk 0:00:42.3]} 24... Nf3+ {[%clk 0:01:41.9]}
25. Kf1 {[%clk 0:00:42.1]} 25... Bxh4 {[%clk 0:01:38.4]} 26. Nf4 {[%clk
0:00:37.7]} 26... Rxf4 {[%clk 0:01:30.1]} 27. gxf4 {[%clk 0:00:36.1]} 27... Qd7
{[%clk 0:01:17.2]} 28. f5 {[%clk 0:00:23.8]} 28... Bxf5 {[%clk 0:01:16.7]} 29.
Nxf5 {[%clk 0:00:03.3]} 29... Qxf5 {[%clk 0:01:16.1]} 30. Be6 {[%clk 0:00:03.8]}
30... Qxe6 {[%clk 0:00:40.4]} 31. Qxe4 {[%clk 0:00:04.7]} 31... Qh3+ {[%clk
0:00:38]} 32. Ke2 {[%clk 0:00:04.2]} 32... Rf8 {[%clk 0:00:25.1]} 33. Rxd6
{[%clk 0:00:02.1]} 33... h6 {[%clk 0:00:25.2]} 0-1

[Event "*** SCC Grand Prix: Titled Tuesday Blitz"]
[Site "Chess.com"]
[Date "2020.07.14"]
[Round "2"]
[White "shav3184"]
[Black "serhanberat_ozdemir"]
[Result "1-0"]
[WhiteElo "2280"]
[BlackElo "2442"]
[TimeControl "180+1"]
[EndTime "10:17:41 PDT"]
[Termination "shav3184 won on time"]

1. e4 {[%clk 0:03:00.9]} 1... c5 {[%clk 0:02:59.7]} 2. Nf3 {[%clk 0:02:58.4]}
2... e6 {[%clk 0:02:59.6]} 3. d4 {[%clk 0:02:58.9]} 3... cxd4 {[%clk 0:03:00.5]}
4. Nxd4 {[%clk 0:02:59.8]} 4... a6 {[%clk 0:03:00.3]} 5. c4 {[%clk 0:02:58.9]}
5... Nf6 {[%clk 0:02:59.8]} 6. Nc3 {[%clk 0:02:58.1]} 6... Qc7 {[%clk
0:03:00.1]} 7. Be3 {[%clk 0:02:49.9]} 7... Bb4 {[%clk 0:02:56.6]} 8. Bd3 {[%clk
0:02:48.4]} 8... Nc6 {[%clk 0:02:48.1]} 9. O-O {[%clk 0:02:46.8]} 9... O-O
{[%clk 0:02:40.7]} 10. Na4 {[%clk 0:02:36.3]} 10... Be7 {[%clk 0:02:09.9]} 11.
b3 {[%clk 0:02:30]} 11... d5 {[%clk 0:01:59.2]} 12. cxd5 {[%clk 0:02:16.1]}
12... exd5 {[%clk 0:02:00.1]} 13. Nxc6 {[%clk 0:02:16.2]} 13... bxc6 {[%clk
0:01:33.7]} 14. exd5 {[%clk 0:02:12.8]} 14... Nxd5 {[%clk 0:01:29]} 15. Bc5
{[%clk 0:02:10.2]} 15... Be6 {[%clk 0:01:12.1]} 16. Rc1 {[%clk 0:02:02.4]} 16...
Rfd8 {[%clk 0:01:07.4]} 17. Qf3 {[%clk 0:02:01.8]} 17... Bf6 {[%clk 0:00:40.4]}
18. Rfe1 {[%clk 0:01:34.4]} 18... a5 {[%clk 0:00:18.4]} 19. h3 {[%clk
0:01:28.6]} 19... Rab8 {[%clk 0:00:15.4]} 20. Be4 {[%clk 0:00:47.5]} 20... Re8
{[%clk 0:00:03.2]} 21. Qd3 {[%clk 0:00:26.8]} 21... Rbd8 {[%clk 0:00:02.5]} 22.
Bxh7+ {[%clk 0:00:21.5]} 22... Kh8 {[%clk 0:00:02.9]} 23. Be4 {[%clk 0:00:19.8]}
23... Nf4 {[%clk 0:00:02.1]} 24. Qf3 {[%clk 0:00:19.7]} 24... Be5 {[%clk
0:00:01.3]} 25. Bxc6 {[%clk 0:00:17.5]} 1-0